Cogmind - Beta 10.2 @@@ ROGUE MODE // 2022.01.09 @ 20:57:46 Player: Okkudo Result: Self-destructed Performance ------------- Evolutions (3) 1500 Regions Visited (6) 1200 Robots Destroyed (37) 185 Value Destroyed (1128) 1128 Prototype IDs (3) 60 Alien Tech Used (0) 0 Bonus (393) 393 TOTAL SCORE: 4466 Bonus ------- Follower Combat Kills 103 Aligned with FarCom 300 Friendly Fire -10 Cogmind --------- Core Integrity 589/700 Matter 158/300 Energy 100/100 System Corruption 3% Temperature Cool (0) Movement Treading (160) Location -7/Factory Parts ------- > --- POWER (2) -------- (None) > --- PROPULSION (4) --- Medium Treads > --- UTILITY (5) ------ Large Storage Unit Advanced Signal Interpreter Modified TNC > --- WEAPON (2) ------- Assault Cannon > --- INVENTORY (10) --- Light Ion Engine Light Nuclear Core Gravmag System Improved VTOL Module Xenon Bombardment Thruster Medium Storage Unit Peak State ------------ > --- POWER ------------ Light Deuterium Engine Light Deuterium Engine > --- PROPULSION ------- Light Treads Medium Treads > --- UTILITY ---------- Large Storage Unit Advanced Signal Interpreter Modified TNC Light Armor Plating > --- WEAPON ----------- Heavy Assault Rifle Assault Cannon > --- INVENTORY -------- Light Ion Engine Light Nuclear Core Gravmag System Improved VTOL Module Xenon Bombardment Thruster Medium Storage Unit Assault Rifle [Rating: 28] Favorites ----------- Power Light Deuterium Engine Engine Light Deuterium Engine Power Core Light Nuclear Core Propulsion Light Treads Treads Light Treads Flight Unit Improved VTOL Module Utility Modified TNC Device Tractor Beam Storage Humpback Processor Modified TNC Protection Light Armor Plating Weapon Assault Rifle Energy Gun Gatling Laser Ballistic Gun Assault Rifle Ballistic Cannon Assault Cannon Launcher Grenade Launcher Build | -11 -10 -10 -10 -9 -8 -7 ------- Run | Scr Mat Min Exi Min Mat Fac Slots Evolved 6 | . . . . . 4 2 Power 1 | . . . . . . 1 Propulsion 2 | . . . . . 2 . Utility 3 | . . . . . 2 1 Weapon . | . . . . . . . Parts Attached 36 | 6 3 . 2 4 14 7 Power 9 | 1 1 . . 1 5 1 Engine 8 | 1 1 . . 1 4 1 Core 1 | . . . . . 1 . Reactor . | . . . . . . . Propulsion 9 | 2 . . . 1 4 2 Treads 8 | 2 . . . 1 3 2 Leg . | . . . . . . . Wheel . | . . . . . . . Hover . | . . . . . . . Flight 1 | . . . . . 1 . Utility 9 | 1 2 . 2 . 2 2 Device 1 | . 1 . . . . . Storage 4 | 1 . . 1 . 1 1 Processor 2 | . . . 1 . 1 . Hackware . | . . . . . . . Protection 2 | . 1 . . . . 1 Artifact . | . . . . . . . Weapon 9 | 2 . . . 2 3 2 Energy Gun 1 | . . . . 1 . . Energy Cannon . | . . . . . . . Ballistic Gun 6 | 2 . . . 1 2 1 Ballistic Cannon 1 | . . . . . . 1 Launcher 1 | . . . . . 1 . Special Weapon . | . . . . . . . Impact Weapon . | . . . . . . . Slashing Weapon . | . . . . . . . Piercing Weapon . | . . . . . . . Special Melee Weapon . | . . . . . . . Unidentified Prototypes 3 | . . . 1 . 2 . Parts Lost 16 | . 1 . . 1 7 7 Power 5 | . 1 . . 1 1 2 Propulsion 6 | . . . . . 4 2 Utility 1 | . . . . . . 1 Weapon 4 | . . . . . 2 2 Highest Loss Streak 6 | . 1 . . 1 5 6 Average Slot Usage (%) 86 | . 96 100 100 99 72 68 Engine 12 | . 11 14 14 13 6 14 Treads 24 | . 28 28 28 28 28 13 Storage 11 | . 14 14 14 14 9 7 Processor 9 | . . . 2 14 9 15 Protection 4 | . 10 14 11 . . 1 Energy Gun 2 | . . . . 4 7 . Ballistic Gun 20 | . 28 28 28 23 9 14 Naked Turns . | . . . . . . . Heaviest Build 95 | 13 16 16 20 22 92 95 Greatest Support 80 | 40 40 40 40 40 80 48 Greatest Overweight (x) 4 | . . . . . 4 4 Average Overweight (x) . | . . . . . 1 . Largest Inventory Capacity 30 | 6 6 6 8 8 28 30 Average Capacity 12 | 5 6 6 6 8 22 19 Most Carried 11 | 4 4 2 5 8 11 9 Average Carried 5 | 1 2 2 3 6 7 7 Final Capacity 24 | 6 6 6 8 8 24 10 Final Carried 8 | 2 2 2 5 8 6 6 Class Distribution -------------------- 67% | Mutant 32% | Hauler-Mutant Dominant Class ---------------- Mutant | -10/Materials Mutant | -10/Mines Mutant | -10/Exiles Mutant | -9/Mines Hauler-Mutant | -8/Materials Hauler-Mutant | -7/Factory Resources | -11 -10 -10 -10 -9 -8 -7 ----------- Run | Scr Mat Min Exi Min Mat Fac Matter Collected 1117 | 255 236 . 31 139 282 174 Remotely . | . . . . . . . Salvage Created 1545 | 64 390 . . 176 656 259 Parts 73 | 1 15 . . 15 26 16 Haulers Intercepted 1 | . . . . . . 1 Recyclers Shooed 4 | . 3 . . . 1 . Parts Field Recycled . | . . . . . . . Retrieved Matter . | . . . . . . . Parts Self-Destructed . | . . . . . . . Prevented . | . . . . . . . Kills | -11 -10 -10 -10 -9 -8 -7 ------- Run | Scr Mat Min Exi Min Mat Fac Combat Hostiles Destroyed 27 | . 5 . . 6 13 3 Guns 23 | . 5 . . 6 9 3 AOE 4 | . . . . . 4 . Classes Destroyed 7 | 1 1 . . 2 1 2 Worker 4 | . . . . . 2 2 Hauler 1 | . . . . . . 1 Recycler 5 | 1 2 . . . 1 1 Swarmer 4 | . . . . 4 . . Grunt 18 | . 5 . . . 12 1 Sentry 3 | . . . . 2 1 . Programmer 2 | . . . . . . 2 Best Kill Streak 5 | 1 2 . . 3 5 2 Combat Bots Only 4 | . 2 . . 3 4 1 Max Kills in Single Turn 2 | 1 1 . . 1 2 1 Gunslinging . | . . . . . . . Exploded 2 | . . . . . 2 . Melee . | . . . . . . . Uniques/NPCs Destroyed . | . . . . . . . Combat | -11 -10 -10 -10 -9 -8 -7 -------- Run | Scr Mat Min Exi Min Mat Fac Damage Taken 2279 | . 309 . . 351 800 819 Core 319 | . 18 . . 57 133 111 Absorbed by Shields . | . . . . . . . Core Remaining (%) 81 | 100 . . . 70 75 . Volleys Fired 140 | 3 37 . . 14 44 42 Largest 2 | 2 2 . . 2 2 2 Hottest 110 | 40 40 . . 43 110 67 Shots Fired 271 | 6 74 . . 28 82 81 Gun 257 | 6 74 . . 28 77 72 Cannon 9 | . . . . . . 9 Launcher 5 | . . . . . 5 . Special . | . . . . . . . Kinetic 233 | 6 74 . . 28 44 81 Thermal 33 | . . . . . 33 . Explosive 5 | . . . . . 5 . Electromagnetic . | . . . . . . . Robot Hit Streak 16 | 3 12 . . 10 9 16 Robot Miss Streak 8 | 2 3 . . 2 8 5 Penetration Max . | . . . . . . . Secondary Targets 1 | . . . . . 1 . Max Gunslinging Chain 1 | . . . . . 1 . Shots Hit Robots 190 | 3 53 . . 17 66 51 Core Hits 81 | 2 17 . . 8 40 14 Critical Hits . | . . . . . . . Critical Kills . | . . . . . . . Critical Parts Destroyed . | . . . . . . . Melee Attacks . | . . . . . . . Impact . | . . . . . . . Slashing . | . . . . . . . Piercing . | . . . . . . . Sneak Attacks . | . . . . . . . Combat Hostiles . | . . . . . . . Follow-up Attacks . | . . . . . . . Damage Inflicted 3107 | 37 721 7 . 190 1335 817 Guns 2484 | 37 721 . . 190 892 644 Cannons 165 | . . . . . . 165 Explosions 443 | . . . . . 443 . Melee . | . . . . . . . Ramming 15 | . . 7 . . . 8 Kinetic 2069 | 37 721 . . 190 312 809 Thermal 580 | . . . . . 580 . Explosive 443 | . . . . . 443 . Electromagnetic . | . . . . . . . Impact . | . . . . . . . Slashing . | . . . . . . . Piercing . | . . . . . . . Highest Corruption 3 | . . . . . 1 3 Average Corruption 1 | . . . . . 1 2 Corruption Purged . | . . . . . . . Effects 10 | . . . . . 4 6 Message Errors 4 | . . . . . 1 3 Matter Fused 2 | . . . . . . 2 Energy Discharges 2 | . . . . . 1 1 Data Loss (minor) 1 | . . . . . 1 . Targeting Errors 1 | . . . . . 1 . Overload Shots . | . . . . . . . Overflow Damage 5 | . . . . . 5 . Projectiles . | . . . . . . . Explosions 5 | . . . . . 5 . Melee . | . . . . . . . Knockbacks 2 | . . . . . . 2 Impact . | . . . . . . . Kinetic 2 | . . . . . . 2 Secondary . | . . . . . . . Self-Inflicted Damage . | . . . . . . . Shots . | . . . . . . . Rammed 2 | . . 1 . . . 1 Targets Rammed 2 | . . 1 . . . 1 Kicked . | . . . . . . . Crushed . | . . . . . . . Highest Temperature 228 | . 6 . . 4 228 24 Average Temperature 42 | . 2 . . 3 53 7 Received Heat Transfer 966 | . 174 . . 54 432 306 Siege Activations . | . . . . . . . Robots Corrupted . | . . . . . . . Combat Hostiles . | . . . . . . . Parts Fried . | . . . . . . . Impact Corruptions . | . . . . . . . Robots Melted . | . . . . . . . Combat Hostiles . | . . . . . . . Parts Melted 3 | . . . . . 3 . Heat Transferred 1325 | . . . . . 1325 . Parts Sabotaged . | . . . . . . . Parts Stolen . | . . . . . . . Parts Stripped . | . . . . . . . Power Chain Reactions . | . . . . . . . Missiles Intercepted . | . . . . . . . Alert | -11 -10 -10 -10 -9 -8 -7 ------- Run | Scr Mat Min Exi Min Mat Fac Peak Influence 281 | 5 147 57 . 150 281 119 Initial 59 | . 3 57 . . . 59 Average 52 | 3 35 57 . 26 102 49 Maximum Alert Level 1 | . . . . . 1 . Low Security (%) 95 | 100 100 100 . 100 81 100 Level 1 4 | . . . . . 18 . Level 2 . | . . . . . . . Level 3 . | . . . . . . . Level 4 . | . . . . . . . Level 5 . | . . . . . . . High Security . | . . . . . . . Max Security . | . . . . . . . Squads Dispatched 14 | . 2 . . . 2 10 Investigation 4 | . 1 . . . . 3 Extermination 2 | . . . . . . 2 Reinforcement 5 | . 1 . . . 2 2 Assault . | . . . . . . . Garrison 3 | . . . . . . 3 Intercept . | . . . . . . . Construction Impeded 1 | . . . . . 1 . Haulers Reinforced 1 | . . . . . . 1 Stealth | -11 -10 -10 -10 -9 -8 -7 --------- Run | Scr Mat Min Exi Min Mat Fac Distress Signals 1 | . 1 . . . . . Communications Jammed . | . . . . . . . Distress Signals . | . . . . . . . Times Spotted 57 | . 13 . . 7 21 16 Peak Tracking Total 7 | . 5 . . 4 5 7 Tactical Retreats 8 | . 3 . . 1 1 3 Traps | -11 -10 -10 -10 -9 -8 -7 ------- Run | Scr Mat Min Exi Min Mat Fac Traps Triggered 2 | . . . . 2 . . Indirectly . | . . . . . . . Trap Hack Attempts . | . . . . . . . Triggered . | . . . . . . . Disarmed 6 | . 6 . . . . . Reprogrammed . | . . . . . . . Reused . | . . . . . . . Traps Extracted . | . . . . . . . Installed . | . . . . . . . Triggered . | . . . . . . . Machines | -11 -10 -10 -10 -9 -8 -7 ---------- Run | Scr Mat Min Exi Min Mat Fac Machines Disabled 1 | . 1 . . . . . Max in Single Turn 1 | . 1 . . . . . Machines Sabotaged . | . . . . . . . Garrisons Compromised . | . . . . . . . Overloaded Fab Kills . | . . . . . . . Fab Network Shutdowns . | . . . . . . . Hacking | -11 -10 -10 -10 -9 -8 -7 --------- Run | Scr Mat Min Exi Min Mat Fac Machines Accessed 11 | . 3 . 1 1 1 5 Terminals 7 | . 3 . . . 1 3 Fabricators 1 | . . . . . . 1 Repair Stations . | . . . . . . . Recycling Units . | . . . . . . . Scanalyzers 1 | . . . . . . 1 Garrison Access . | . . . . . . . Total Hacks 50 | . 8 . 23 1 3 15 Successful 37 | . 6 . 23 1 1 6 Failed 13 | . 2 . . . 2 9 Catastrophic 2 | . . . . . . 2 Database Lockouts . | . . . . . . . Manual 2 | . . . 2 . . . Terminals 19 | . 8 . . . 3 8 Fabricators 4 | . . . . . . 4 Repair Stations . | . . . . . . . Recycling Units . | . . . . . . . Scanalyzers 3 | . . . . . . 3 Garrison Access . | . . . . . . . Terminal Hacks 33 | . 6 . 23 1 1 2 Record 24 | . . . 23 . . 1 Robot Analysis 1 | . . . . . 1 . Open Door 1 | . . . . 1 . . Level Access Points 1 | . 1 . . . . . Branch Access Points 1 | . 1 . . . . . Alert Level 1 | . . . . . . 1 Locate Traps 1 | . 1 . . . . . Disarm Traps 1 | . 1 . . . . . Dispatch Records 1 | . 1 . . . . . Maintenance Status 1 | . 1 . . . . . Fabricator Hacks 1 | . . . . . . 1 Network Status 1 | . . . . . . 1 Repair Station Hacks . | . . . . . . . Recycling Unit Hacks . | . . . . . . . Scanalyzer 3 | . . . . . . 3 Insert Component 1 | . . . . . . 1 Analyze 2 | . . . . . . 2 Garrison Access Hacks . | . . . . . . . Unauthorized Hacks . | . . . . . . . Terminals . | . . . . . . . Fabricators . | . . . . . . . Repair Stations . | . . . . . . . Recycling Units . | . . . . . . . Scanalyzers . | . . . . . . . Garrison Access . | . . . . . . . Data Cores Recovered . | . . . . . . . Used . | . . . . . . . Hacking Detections 6 | . 2 . . . 1 3 Full Trace Events 5 | . 1 . . . 1 3 Feedback Events 1 | . . . . . 1 . Corruption 1 | . . . . . 1 . Feedback Blocked . | . . . . . . . Robot Schematics Acquired . | . . . . . . . Robots Built . | . . . . . . . Matter . | . . . . . . . Time . | . . . . . . . Total Robot Build Rating . | . . . . . . . Part Schematics Acquired 1 | . . . . . . 1 Parts Built . | . . . . . . . Matter . | . . . . . . . Time . | . . . . . . . Total Part Build Rating . | . . . . . . . Parts Repaired . | . . . . . . . Time . | . . . . . . . Parts Recycled . | . . . . . . . Recycled Matter . | . . . . . . . Retrieved Matter . | . . . . . . . Retrieved Components . | . . . . . . . Parts Scanalyzed 1 | . . . . . . 1 Part Schematics Acquired 1 | . . . . . . 1 Parts Damaged . | . . . . . . . Bothacking | -11 -10 -10 -10 -9 -8 -7 ------------ Run | Scr Mat Min Exi Min Mat Fac Used RIF Installer . | . . . . . . . Robots Hacked . | . . . . . . . Non-combat . | . . . . . . . Combat . | . . . . . . . Robot Hacks Applied . | . . . . . . . Relay Couplers Released . | . . . . . . . Robots Rewired . | . . . . . . . Allies Hacked . | . . . . . . . Hacks Repelled . | . . . . . . . Allies | -11 -10 -10 -10 -9 -8 -7 -------- Run | Scr Mat Min Exi Min Mat Fac Total Allies 3 | . . . . 3 . . Largest Group 3 | . . . . 3 3 . Highest-Rated Group 40 | . . . . 40 40 . Highest-Rated Ally 16 | . . . . 16 16 . Total Orders 2 | . . . . . 2 . STAY 1 | . . . . . 1 . GUARD 1 | . . . . . 1 . Ally Attacks 16 | . . . . . 16 . Total Damage 193 | . . . . . 193 . Kills 3 | . . . . . 3 . Allies Corrupted . | . . . . . . . Allies Melted . | . . . . . . . Intel | -11 -10 -10 -10 -9 -8 -7 ------- Run | Scr Mat Min Exi Min Mat Fac Robot Analysis Total 1 | . . . . . 1 . Derelict Logs Recovered 3 | . . . . 3 . . Drone Launches . | . . . . . . . Drone Recoveries . | . . . . . . . Exploration | -11 -10 -10 -10 -9 -8 -7 ------------- Run | Scr Mat Min Exi Min Mat Fac Turns Passed 4977 | 67 530 164 992 1094 845 1285 Spaces Moved 2565 | 35 221 102 616 630 361 600 Core 10 | 10 . . . . . . Treads 2555 | 25 221 102 616 630 361 600 Legs . | . . . . . . . Wheels . | . . . . . . . Hover . | . . . . . . . Flight . | . . . . . . . Fastest Speed 50 | 50 160 160 160 160 160 160 Average Speed 167 | 128 160 160 160 160 185 177 Slowest Speed 240 | 160 160 160 160 160 240 240 Overloaded Moves . | . . . . . . . Propulsion Burnouts . | . . . . . . . Robots Hopped . | . . . . . . . Cave-ins Triggered . | . . . . . . . Exploration Rate (%) 40 | 3 34 16 91 98 21 17 Regions Visited 6 Branch Regions 3 Pre-discovered Areas 1 | . . . 1 . . . Known Exits Taken 2 | . 1 . . . 1 . Unknown Exits Taken 4 | 1 . 1 1 1 . . Scrap Searched 2 | . . . . 2 . . Spaces Dug . | . . . . . . . Terrain Destroyed 34 | . . . . . 34 . Melee . | . . . . . . . Projectile . | . . . . . . . AOE 34 | . . . . . 34 . Terrain Rammed . | . . . . . . . Walls Destroyed . | . . . . . . . Machines Disabled . | . . . . . . . Actions | -11 -10 -10 -10 -9 -8 -7 --------- Run | Scr Mat Min Exi Min Mat Fac Total 2973 | 51 324 102 623 688 448 737 Wait 188 | . 60 . . 32 16 80 Move 2559 | 34 220 101 615 629 360 600 Hop . | . . . . . . . Pick Up 36 | 8 3 . 4 6 9 6 Fast Attach 2 | . . . . 1 1 . Attach 24 | 6 3 . . . 9 6 Detach 1 | . . . . . 1 . Swap 10 | . . . 2 3 4 1 Drop 11 | . 1 . 2 3 4 1 Fire 140 | 3 37 . . 14 44 42 Melee . | . . . . . . . Ram . | . . . . . . . Kick . | . . . . . . . Crush 2 | . . 1 . . . 1 Escape Stasis . | . . . . . . . Rewire . | . . . . . . . Trap . | . . . . . . . Miscellaneous . | . . . . . . . Route ------- -11/Scrapyard -10/Materials (discovered 5 exits: Mat x3 / *Min x2) -10/Mines -10/Exiles -9/Mines (discovered 2 exits: *Mat x2) -8/Materials (discovered 2 exits: *Fac x2) -7/Factory History --------- Turn | Location | Event 6 | -11/Scrapyard | Discovered new exit (range 16) 68 | -11/Scrapyard | Entered Materials 311 | -10/Materials | Build established: Mutant 399 | -10/Materials | Discovered new exit (range 16) 451 | -10/Materials | Identified exit to Materials 468 | -10/Materials | Identified exit to Mines 598 | -10/Materials | Entered Mines 650 | -10/Mines | Deemed a non-threat by the Exiles lab entrance 650 | -10/Mines | Discovered new exit (range 5) 705 | -10/Mines | Assembled infested the area 762 | -10/Mines | Entered Exiles 804 | -10/Exiles | Met 8R-AWN 830 | -10/Exiles | Met EX-HEX 954 | -10/Exiles | Met EX-DEC 989 | -10/Exiles | Visited The Gauntlet 1214 | -10/Exiles | Learned location of Zion (-6) 1363 | -10/Exiles | Discovered new exit (range 10) 1488 | -10/Exiles | Met EX-BIN 1507 | -10/Exiles | Aligned with FarCom system 1509 | -10/Exiles | Given EX-Vault access code 1547 | -10/Exiles | Opened EX-Vault 1555 | -10/Exiles | Found Prototype Processor 1556 | -10/Exiles | Identified Modified TNC 1594 | -10/Exiles | Warned to stay clear of 0b10 Research branches 1754 | -10/Exiles | Left Exiles lab with Modified TNC 1754 | -10/Exiles | Entered Mines 1922 | -9/Mines | Learned 4 Materials zone layouts 2084 | -9/Mines | Learned 2 Materials zone layouts 2285 | -9/Mines | Discovered new exit (range 6) 2490 | -9/Mines | Met a Derelict who couldn't figure out how to use a Trap Extractor 2656 | -9/Mines | Assisted by bots powering up and referring to "LRC-V3" 2826 | -9/Mines | Discovered new exit (range 9) 2848 | -9/Mines | Entered Materials 2848 | -8/Materials | Accompanied by 3 allies 2848 | -8/Materials | Evolved 4 slots: Propulsion x2, Utility x2 2849 | -8/Materials | Identified exit to Factory 3209 | -8/Materials | Build established: Hauler-Mutant 3591 | -8/Materials | Lost 5 parts (1p2n2w) 3693 | -8/Materials | Entered Factory 3693 | -7/Factory | Evolved 2 slots: Power x1, Utility x1 3845 | -7/Factory | Garrison activated, responded to threat 4847 | -7/Factory | Build established: Mutant 4978 | -7/Factory | Self-destructed Last Messages --------------- 04904_ Lgt. Deuterium Engine destroyed. 04906_ R-06 Scavenger collects Lgt. Nuclear Core. 04908_ Hvy. Assault Rifle destroyed. 04913_ R-06 Scavenger collects Imp. Heat Sink. 04916_ R-06 Scavenger collects Particle Gun. 04928_ K-01 Serf destroyed. 04929_ Assault Rifle destroyed. 04933_ Acquired 7 matter. 04939_ U-05 Engineer knocked back. 04940_ Lgt. Treads destroyed. 04943_ Slug penetrates Wall. 04946_ R-06 Scavenger collects Lgt. Ion Engine. 04950_ System corrupted: Matter fused (-10). 04953_ Slug penetrates Wall. 04960_ O-24 Administrator: "IFF HANDSHAKE FAILED. SECURING TERMINAL." 04964_ Penetrated by Slug. 04964_ Lgt. Deuterium Engine destroyed. 04967_ Slammed into R-06 Scavenger. 04970_ ALERT: Hostiles spotted, dispatching reinforcements to Terminal F007. 04974_ K-01 Serf cleans the Nuclear Reactor. Map ----- +----------------------------------------------------+ | ####+###+##??????????????????????? | | # #??????????????????????????? | | """"""""" # """"" #??????????????????????????? | | %# """"" #??????????????????????????? | | """"""""" # """ #??????????????????????????? | | # #??????????????????????????? | | # #??????????????????????????? | | +########## # #??????????????????????????? | | ??????????# # #??????????????????????????? | | ????????### ###########??????????????????????????? | | ????????# #??????????????????????????????????? | | ????????# T #??????????????????????????????????? | | ????????# "" #??????????????????????????????????? | | ????????# #??????????????????????????????????? | | ????????# !#??????????????????????????????????? | | ????????### ###??????????????????????????????????? | | " """ ### #????????????????????????????????????? | | / #????????????????????????????????????? | | ! ### #????????????????????????????????????? | | ????????# #????????????????????????????????????? | | ??????????# #???##############???????????????????? | | ??????????# #???# #???????????????????? | | ??????????# #???# #???????????????????? | | ??????????# #???# #???????????????????? | | ??????????# #???# #????? #??????????? | | ??????????# #???# @ #a? #??????????? | | ????#######/############+##### #??????????? | | ????# g #???# #??????????? | | ?? # ! g##### #??????????? | | ? + g ggh """ """ #??????????? | | ????# """ ##### """ """ #??????????? | | ????# """"" #???# """ """ ????????????????? | | ????# """"" #???# ????????????????? | | ????# #???# """ """?????????????????? | | ????# """ #???# """ """?????????????????? | | ????# """"" #???# """ ""??????????????????? | | ????# """"" #???# ??????????????????? | | ????#???? #???# """ ????????????????????? | | ?????????? #???# """ ????????????????????? | | ??????????########???# ""??????????????????????? | | ?????????????????????# ???????????????????????? | | ?????????????????????# ???????????????????????? | | ?????????????????????# ??????????????????????? | | ?????????????????????? ???????????????????????? | | ??????????????????????#####??????????????????????? | | ?????????????????????????????????????????????????? | | ?????????????????????????????????????????????????? | | ?????????????????????????????????????????????????? | | ?????????????????????????????????????????????????? | | ?????????????????????????????????????????????????? | +----------------------------------------------------+ Best States ------------- Heat Dissipation 34 Energy Generation 23 Energy Capacity 265 Matter Stores 300 Matter Capacity 300 Sight Range 16 Terrain Scan Density 10 Armor Coverage 150 Evasion (%) 50 Recoil Reduction 4 Item Schematics ----------------- Imp. VTOL Module | -7/Factory | Scanalyzed Robot Schematics ------------------ None Fabricated ------------ Nothing Alien Tech Used ----------------- None Achievements -------------- None Challenges ------------ None Game ------ Seed RefineryRemoteChronowheel Manual? 0 Play Time 00:45:09 Cumulative 22.7 hours Start 2022.01.09 @ 20:07:04 End 2022.01.09 @ 20:57:46 Sessions 1 Manual Loads 0 Difficulty Rogue Special Mode None Game No. 43 Rogue 43 Adventurer 0 Explorer 0 Win Type - Total 0 Types 0/0/0/0/0/0/0/0/0 Lore% 21 Gallery% 21 Achievement% 15 Wizard Run 0 Options --------- ASCII 0 Keyboard 0 Movement Mouse Keybinds 0 Fullscreen 1 Font 12/Terminus Map View 83x54 Tactical HUD 1 Map Filters NONE Filters NONE Steam 1 RUN: 030bea9f-c286-4b7a-9f09-4aaa9ff46046